[Event "DVM U12w 2024"]
[Site "Bad Homburg"]
[Date "2024.12.29"]
[Round "5"]
[White "Noennig, Lotte"]
[Black "Huang, Jasmin Shuya"]
[Result "1-0"]
[ECO "B46"]
[WhiteElo "1635"]
[BlackElo "1523"]
[Annotator "NA RC"]
[PlyCount "89"]
[EventDate "2024.12.23"]
[EventType "team-tourn"]
[EventRounds "7"]
[EventCountry "GER"]
[SourceTitle "playchess.com"]
[Source "ChessBase"]
[SourceQuality "1"]
[TimeControl "40/5400+30:1800+30"]

1. e4 {[%emt 0:00:03]} c5 {[%emt 0:00:02]} 2. Nf3 {[%emt 0:00:20]} e6 {[%emt 0:00:04]} 3. d4 {[%emt 0:00:20]} cxd4 {[%emt 0:00:04]} 4. Nxd4 {[%emt 0:00:13]} Nc6 {[%emt 0:00:08]} 5. Nc3 {[%emt 0:05:09]} a6 {[%emt 0:00:24]} 6. Nxc6 {[%emt 0:01:14]} bxc6 {[%emt 0:00:27]} 7. Bd3 {[%emt 0:01:07]} d5 {[%emt 0:01:52]} 8. O-O {[%emt 0:05:00]} Nf6 {[%emt 0:02:27]} 9. f4 {[%emt 0:05:57]} Bc5+ {[%emt 0:05:43]} 10. Kh1 {[%emt 0:00:56]} O-O {[%emt 0:06:10]} 11. Qf3 {[%emt 0:04:41]} Nd7 {[%emt 0:24:29]} 12. Qh3 {[%emt 0:10:52]} e5 {[%emt 0:12:06]} 13. exd5 {[%emt 0:03:09]} Nf6 {[%emt 0:02:22]} 14. Qg3 {[%emt 0:04:48]} exf4 {[%emt 0:03:11]} 15. Bxf4 {[%emt 0:03:34]} Nh5 {[%emt 0:01:02]} 16. Qf3 {[%emt 0:06:23]} Nxf4 {[%emt 0:00:49]} 17. Qxf4 {[%emt 0:01:24]} cxd5 {[%emt 0:01:30]} 18. Qe5 {[%emt 0:05:03]} Be6 {[%emt 0:03:03]} 19. Rad1 {[%emt 0:02:11]} Qd7 {[%emt 0:08:06]} 20. Bf5 {[%emt 0:07:22]} Qd6 {[%emt 0:07:10]} 21. Qxd6 {[%emt 0:01:23]} Bxd6 {[%emt 0:00:04]} 22. Nxd5 {[%emt 0:01:55]} Bxf5 {[%emt 0:01:13]} 23. Rxf5 {[%emt 0:00:12]} Rfd8 {[%emt 0:00:42]} 24. c4 {[%emt 0:02:59]} Rac8 {[%emt 0:02:21]} 25. b3 {[%emt 0:00:50]} f6 {[%emt 0:01:28]} 26. Rf3 {[%emt 0:01:47]} Kf7 {[%emt 0:00:57]} 27. g3 {[%emt 0:01:17]} Re8 {[%emt 0:01:55]} 28. Rfd3 {[%emt 0:02:02]} Be5 {[%emt 0:01:43]} 29. Nb4 {[%emt 0:02:27]} a5 {[%emt 0:00:44]} 30. Nd5 {[%emt 0:02:34]} Bb2 {[%emt 0:01:49]} 31. Nc3 {[%emt 0:03:37]} Ba3 {[%emt 0:02:25]} 32. Nb5 {[%emt 0:01:29]} Bb4 {[%emt 0:00:24]} 33. a3 {[%emt 0:00:47]} Bc5 {[%emt 0:01:33]} 34. Rb1 {[%emt 0:01:40]} Re3 {[%emt 0:00:27]} 35. Rxe3 {[%emt 0:00:18]} Bxe3 {[%emt 0:00:04]} 36. Nd6+ {[%emt 0:00:17]} Ke6 {[%emt 0:00:27]} 37. Nxc8 {[%emt 0:00:49]} Kd7 {[%emt 0:00:03]} 38. b4 {[%emt 0:03:44]} axb4 {[%emt 0:00:11]} 39. axb4 {[%emt 0:00:16]} Kxc8 {[%emt 0:00:03]} 40. c5 {[%emt 0:00:47]} Kb7 {[%emt 0:00:43]} 41. Kg2 {[%emt 0:31:13]} g5 {[%emt 0:30:56]} 42. Kf3 {[%emt 0:00:38]} Bd4 {[%emt 0:00:44]} 43. Ke4 {[%emt 0:00:44]} Be5 {[%emt 0:00:54]} 44. b5 {[%emt 0:01:05]} h5 {[%emt 0:00:06]} 45. b6 {[%emt 0:01:47]} 1-0

[Event "DVM U12w 2024"]
[Site "Bad Homburg"]
[Date "2024.12.29"]
[Round "5"]
[White "Busch, Lara Sophie"]
[Black "Andreeva, Katharina"]
[Result "1/2-1/2"]
[ECO "B26"]
[WhiteElo "1625"]
[BlackElo "1164"]
[Annotator "NA"]
[PlyCount "40"]
[EventDate "2024.12.23"]
[EventType "team-tourn"]
[EventRounds "7"]
[EventCountry "GER"]
[SourceTitle "playchess.com"]
[Source "ChessBase"]
[SourceQuality "1"]
[TimeControl "40/5400+30:1800+30"]

1. e4 {[%emt 0:00:01]} c5 {[%emt 0:00:03]} 2. Nc3 {[%emt 0:00:13]} d6 {[%emt 0:00:08]} 3. g3 {[%emt 0:00:18]} Nf6 {[%emt 0:00:20]} 4. Bg2 {[%emt 0:00:21]} g6 {[%emt 0:01:03]} 5. d3 {[%emt 0:00:14]} Bg7 {[%emt 0:00:23]} 6. h3 {[%emt 0:01:12]} O-O {[%emt 0:00:18]} 7. Be3 {[%emt 0:00:22]} Bd7 {[%emt 0:01:36]} 8. Qd2 {[%emt 0:00:34]} Nc6 {[%emt 0:00:50]} 9. Bh6 {[%emt 0:00:40]} Rc8 {[%emt 0:02:14]} 10. Bxg7 {[%emt 0:00:13]} Kxg7 {[%emt 0:00:20]} 11. f4 {[%emt 0:01:42]} e6 {[%emt 0:04:05]} 12. Nf3 {[%emt 0:01:28]} d5 {[%emt 0:02:08]} 13. O-O {[%emt 0:02:55]} Kg8 {[%emt 0:02:41]} 14. Kh2 {[%emt 0:02:54]} d4 {[%emt 0:01:25]} 15. Ne2 {[%emt 0:00:59]} Qc7 {[%emt 0:02:38]} 16. a3 {[%emt 0:10:23]} Rfe8 {[%emt 0:03:01]} 17. Nh4 {[%emt 0:06:59]} Re7 {[%emt 0:16:09]} 18. f5 {[%emt 0:09:39]} Qa5 {[%emt 0:10:08]} 19. Qxa5 {[%emt 0:06:33]} Nxa5 {[%emt 0:00:16]} 20. e5 {[%emt 0:00:50]} Nd5 {[%emt 0:02:42]} 1/2-1/2

[Event "DVM U12w 2024"]
[Site "Bad Homburg"]
[Date "2024.12.29"]
[Round "5"]
[White "Klymenko, Mariia"]
[Black "Fruth, Julia"]
[Result "1-0"]
[ECO "E65"]
[WhiteElo "1625"]
[BlackElo "1614"]
[Annotator "NA RC"]
[PlyCount "91"]
[EventDate "2024.12.23"]
[EventType "team-tourn"]
[EventRounds "7"]
[EventCountry "GER"]
[SourceTitle "playchess.com"]
[Source "ChessBase"]
[SourceQuality "1"]
[TimeControl "40/5400+30:1800+30"]

1. Nf3 {[%emt 0:00:02]} c5 {[%emt 0:00:49]} 2. g3 {[%emt 0:00:10]} Nf6 {[%emt 0:01:49]} 3. Bg2 {[%emt 0:00:09]} g6 {[%emt 0:00:44]} 4. O-O {[%emt 0:00:18]} Bg7 {[%emt 0:00:16]} 5. d4 {[%emt 0:02:00]} Qc7 {[%emt 0:03:35]} 6. b3 {[%emt 0:01:53]} O-O {[%emt 0:02:57]} 7. Bb2 {[%emt 0:05:14]} d6 {[%emt 0:01:50]} 8. c4 {[%emt 0:01:49]} Nbd7 {[%emt 0:10:07]} 9. Nc3 {[%emt 0:02:23]} cxd4 {[%emt 0:05:30]} 10. Nxd4 {[%emt 0:02:05]} Nc5 {[%emt 0:03:02]} 11. Qd2 {[%emt 0:07:40]} Rb8 {[%emt 0:05:53]} 12. Rfd1 {[%emt 0:02:26]} b6 {[%emt 0:01:49]} 13. Ncb5 {[%emt 0:08:26]} Qd7 {[%emt 0:02:06]} 14. Bc6 {[%emt 0:04:07]} Qd8 {[%emt 0:00:59]} 15. Nxa7 {[%emt 0:01:38]} Bd7 {[%emt 0:10:43]} 16. Bg2 {[%emt 0:04:42]} Nfe4 {[%emt 0:03:04]} 17. Qc2 {[%emt 0:02:03]} f5 {[%emt 0:03:03]} 18. Nac6 {[%emt 0:02:03]} Qc7 {[%emt 0:03:24]} 19. Nxb8 {[%emt 0:01:43]} Qxb8 {[%emt 0:02:00]} 20. Nb5 {[%emt 0:07:58]} Rc8 {[%emt 0:01:23]} 21. Bxg7 {[%emt 0:03:31]} Kxg7 {[%emt 0:00:52]} 22. Nc3 {[%emt 0:01:14]} Bc6 {[%emt 0:02:06]} 23. Nxe4 {[%emt 0:03:24]} Nxe4 {[%emt 0:01:50]} 24. g4 {[%emt 0:04:42]} d5 {[%emt 0:02:32]} 25. gxf5 {[%emt 0:02:14]} Qf4 {[%emt 0:00:56]} 26. Bxe4 {[%emt 0:03:26]} dxe4 {[%emt 0:00:26]} 27. Qc3+ {[%emt 0:06:22]} Kg8 {[%emt 0:02:13]} 28. Qg3 {[%emt 0:04:14]} Qxf5 {[%emt 0:01:50]} 29. Rd2 {[%emt 0:00:45]} Rf8 {[%emt 0:01:12]} 30. e3 {[%emt 0:01:38]} Qh5 {[%emt 0:01:19]} 31. Kh1 {[%emt 0:04:39]} Rf5 {[%emt 0:02:47]} 32. Rg1 {[%emt 0:01:11]} Kf7 {[%emt 0:05:46]} 33. b4 {[%emt 0:02:26]} Kf6 {[%emt 0:03:42]} 34. b5 {[%emt 0:01:28]} Be8 {[%emt 0:04:52]} 35. Qg4 {[%emt 0:00:35]} Qh6 {[%emt 0:02:34]} 36. Qxe4 {[%emt 0:00:58]} Kf7 {[%emt 0:03:44]} 37. a4 {[%emt 0:01:42]} Qh3 {[%emt 0:02:31]} 38. Qg4 {[%emt 0:01:13]} Qh6 {[%emt 0:01:07]} 39. Rg2 {[%emt 0:04:04]} Kf6 {[%emt 0:01:37]} 40. Qd4+ {[%emt 0:00:45]} Kf7 {[%emt 0:00:23]} 41. Qxb6 {[%emt 0:30:49]} Rh5 {[%emt 0:31:06]} 42. a5 {[%emt 0:00:48]} Qg7 {[%emt 0:00:00]} 43. Qd4 {[%emt 0:00:00]} Qf8 {[%emt 0:00:00]} 44. a6 {[%emt 0:00:00]} Kg8 {[%emt 0:00:00]} 45. a7 {[%emt 0:00:00]} Qf3 {[%emt 0:00:00]} 46. Qg4 {[%emt 0:00:00]} 1-0

[Event "DVM U12w 2024"]
[Site "Bad Homburg"]
[Date "2024.12.29"]
[Round "5"]
[White "Subocz, Barbara"]
[Black "Sobczak, Zuzanna"]
[Result "0-1"]
[ECO "B40"]
[WhiteElo "1623"]
[BlackElo "1598"]
[Annotator "NA"]
[PlyCount "64"]
[EventDate "2024.12.23"]
[EventType "team-tourn"]
[EventRounds "7"]
[EventCountry "GER"]
[SourceTitle "playchess.com"]
[Source "ChessBase"]
[SourceQuality "1"]
[TimeControl "40/5400+30:1800+30"]

1. e4 {[%emt 0:00:03]} c5 {[%emt 0:00:04]} 2. c3 {[%emt 0:00:05]} Qa5 {[%emt 0:00:05]} 3. Nf3 {[%emt 0:00:54]} e6 {[%emt 0:00:15]} 4. d4 {[%emt 0:01:43]} cxd4 {[%emt 0:00:10]} 5. Nxd4 {[%emt 0:00:07]} Nf6 {[%emt 0:00:14]} 6. Bd3 {[%emt 0:05:56]} Nc6 {[%emt 0:00:54]} 7. Bd2 {[%emt 0:04:49]} Be7 {[%emt 0:02:30]} 8. O-O {[%emt 0:00:49]} O-O {[%emt 0:00:15]} 9. Be3 {[%emt 0:01:13]} e5 {[%emt 0:05:16]} 10. Nf5 {[%emt 0:05:31]} d5 {[%emt 0:00:54]} 11. Nxe7+ {[%emt 0:00:54]} Nxe7 {[%emt 0:00:18]} 12. exd5 {[%emt 0:00:51]} Qxd5 {[%emt 0:01:31]} 13. c4 {[%emt 0:02:16]} Qd7 {[%emt 0:02:16]} 14. Nc3 {[%emt 0:02:58]} Nf5 {[%emt 0:09:22]} 15. Bc5 {[%emt 0:06:16]} Re8 {[%emt 0:00:57]} 16. Qc2 {[%emt 0:01:43]} Nd4 {[%emt 0:00:15]} 17. Bxd4 {[%emt 0:02:34]} exd4 {[%emt 0:00:48]} 18. Ne2 {[%emt 0:00:32]} b6 {[%emt 0:15:34]} 19. Rad1 {[%emt 0:01:48]} Bb7 {[%emt 0:00:55]} 20. Bf5 {[%emt 0:01:17]} Qc6 {[%emt 0:00:14]} 21. Bh3 {[%emt 0:00:12]} b5 {[%emt 0:14:28]} 22. Nxd4 {[%emt 0:00:47]} Qxc4 {[%emt 0:00:22]} 23. Qxc4 {[%emt 0:01:44]} bxc4 {[%emt 0:00:10]} 24. Rc1 {[%emt 0:00:26]} Rad8 {[%emt 0:01:35]} 25. Rxc4 {[%emt 0:01:33]} Ba6 {[%emt 0:00:14]} 26. Ra4 {[%emt 0:01:46]} Bxf1 {[%emt 0:00:10]} 27. Kxf1 {[%emt 0:00:07]} Re4 {[%emt 0:00:20]} 28. Rxa7 {[%emt 0:00:16]} Rexd4 {[%emt 0:00:18]} 29. g3 {[%emt 0:00:09]} g6 {[%emt 0:00:11]} 30. a3 {[%emt 0:00:31]} Rd2 {[%emt 0:00:06]} 31. b4 {[%emt 0:00:09]} Ne4 {[%emt 0:00:20]} 32. b5 {[%emt 0:01:06]} Rxf2+ {[%emt 0:00:07]} 0-1

[Event "DVM U12w 2024"]
[Site "Bad Homburg"]
[Date "2024.12.29"]
[Round "5"]
[White "Hendler, Felicitas"]
[Black "Bacakova, Klara"]
[Result "0-1"]
[ECO "B42"]
[WhiteElo "1610"]
[BlackElo "1539"]
[Annotator "NA"]
[PlyCount "62"]
[EventDate "2024.12.23"]
[EventType "team-tourn"]
[EventRounds "7"]
[EventCountry "GER"]
[SourceTitle "playchess.com"]
[Source "ChessBase"]
[SourceQuality "1"]
[TimeControl "40/5400+30:1800+30"]

1. e4 {[%emt 0:00:15]} c5 {[%emt 0:00:07]} 2. Nf3 {[%emt 0:00:42]} e6 {[%emt 0:00:10]} 3. d4 {[%emt 0:01:05]} cxd4 {[%emt 0:00:08]} 4. Nxd4 {[%emt 0:01:34]} a6 {[%emt 0:00:09]} 5. c4 {[%emt 0:01:55]} d6 {[%emt 0:02:17]} 6. Nc3 {[%emt 0:04:56]} Qc7 {[%emt 0:01:06]} 7. Bd3 {[%emt 0:05:13]} Be7 {[%emt 0:01:06]} 8. O-O {[%emt 0:01:42]} Nf6 {[%emt 0:00:31]} 9. Be3 {[%emt 0:06:17]} O-O {[%emt 0:01:19]} 10. f4 {[%emt 0:01:37]} Nbd7 {[%emt 0:05:13]} 11. Qf3 {[%emt 0:05:21]} b6 {[%emt 0:06:06]} 12. Qg3 {[%emt 0:04:54]} Kh8 {[%emt 0:16:08]} 13. Qh3 {[%emt 0:05:34]} e5 {[%emt 0:04:15]} 14. Nf5 {[%emt 0:02:44]} Nc5 {[%emt 0:14:45]} 15. Qg3 {[%emt 0:02:13]} Bxf5 {[%emt 0:00:28]} 16. Bxc5 {[%emt 0:00:43]} Qxc5+ {[%emt 0:00:12]} 17. Kh1 {[%emt 0:00:37]} Be6 {[%emt 0:04:24]} 18. f5 {[%emt 0:01:31]} Bxc4 {[%emt 0:00:50]} 19. Bxc4 {[%emt 0:00:24]} Qxc4 {[%emt 0:01:20]} 20. h4 {[%emt 0:01:59]} Nxe4 {[%emt 0:03:49]} 21. Qh3 {[%emt 0:01:43]} Nxc3 {[%emt 0:00:31]} 22. h5 {[%emt 0:01:19]} Nd5 {[%emt 0:02:55]} 23. g4 {[%emt 0:01:47]} Qe4+ {[%emt 0:05:59]} 24. Kh2 {[%emt 0:00:25]} Qe2+ {[%emt 0:01:23]} 25. Kh1 {[%emt 0:00:21]} Nf6 {[%emt 0:01:43]} 26. Rg1 {[%emt 0:01:25]} Qe4+ {[%emt 0:05:54]} 27. Kh2 {[%emt 0:00:11]} Qf4+ {[%emt 0:00:12]} 28. Kh1 {[%emt 0:00:10]} Qg5 {[%emt 0:00:21]} 29. Rg2 {[%emt 0:00:52]} Nd5 {[%emt 0:00:33]} 30. Rh2 {[%emt 0:00:17]} h6 {[%emt 0:00:35]} 31. Rf1 {[%emt 0:00:48]} Rac8 {[%emt 0:01:13]} 0-1

[Event "DVM U12w 2024"]
[Site "Bad Homburg"]
[Date "2024.12.29"]
[Round "5"]
[White "Xu, Dorothea Sicheng"]
[Black "Reuber, Ella"]
[Result "1-0"]
[ECO "B70"]
[WhiteElo "1585"]
[BlackElo "1188"]
[Annotator "NA"]
[PlyCount "57"]
[EventDate "2024.12.23"]
[EventType "team-tourn"]
[EventRounds "7"]
[EventCountry "GER"]
[SourceTitle "playchess.com"]
[Source "ChessBase"]
[SourceQuality "1"]
[TimeControl "40/5400+30:1800+30"]

1. e4 {[%emt 0:00:01]} c5 {[%emt 0:00:05]} 2. Nf3 {[%emt 0:00:05]} d6 {[%emt 0:00:08]} 3. Bb5+ {[%emt 0:00:03]} Bd7 {[%emt 0:00:08]} 4. Bxd7+ {[%emt 0:00:05]} Nxd7 {[%emt 0:00:07]} 5. d4 {[%emt 0:00:08]} cxd4 {[%emt 0:00:37]} 6. Nxd4 {[%emt 0:00:09]} Ngf6 {[%emt 0:00:10]} 7. Nc3 {[%emt 0:00:07]} g6 {[%emt 0:00:13]} 8. O-O {[%emt 0:00:29]} Bg7 {[%emt 0:00:16]} 9. Re1 {[%emt 0:01:21]} O-O {[%emt 0:04:23]} 10. h3 {[%emt 0:03:51]} Rc8 {[%emt 0:00:00]} 11. Bg5 {[%emt 0:10:57]} a6 {[%emt 0:02:12]} 12. Qd2 {[%emt 0:03:10]} Ne5 {[%emt 0:03:12]} 13. Rad1 {[%emt 0:09:51]} Re8 {[%emt 0:05:23]} 14. Nd5 {[%emt 0:08:42]} Nxd5 {[%emt 0:03:46]} 15. exd5 {[%emt 0:00:25]} Qc7 {[%emt 0:05:50]} 16. b3 {[%emt 0:07:58]} Qc5 {[%emt 0:01:46]} 17. c4 {[%emt 0:02:04]} Qc7 {[%emt 0:05:19]} 18. Bh6 {[%emt 0:04:37]} Qd7 {[%emt 0:05:38]} 19. Bxg7 {[%emt 0:02:01]} Kxg7 {[%emt 0:00:11]} 20. Qb2 {[%emt 0:04:53]} f6 {[%emt 0:03:49]} 21. Ne6+ {[%emt 0:02:40]} Kg8 {[%emt 0:00:46]} 22. Qd2 {[%emt 0:02:11]} Nf7 {[%emt 0:01:14]} 23. h4 {[%emt 0:07:13]} Nd8 {[%emt 0:01:43]} 24. Qh6 {[%emt 0:02:36]} Nxe6 {[%emt 0:00:07]} 25. dxe6 {[%emt 0:00:16]} Qc6 {[%emt 0:01:04]} 26. Re3 {[%emt 0:01:59]} Qc5 {[%emt 0:00:33]} 27. Rd5 {[%emt 0:02:13]} Qa3 {[%emt 0:00:30]} 28. Rg3 {[%emt 0:01:16]} Rc5 {[%emt 0:00:38]} 29. h5 {[%emt 0:01:16]} 1-0

[Event "DVM U12w 2024"]
[Site "Bad Homburg"]
[Date "2024.12.29"]
[Round "5"]
[White "Frenzel, Qorianka"]
[Black "Bayer, Klara"]
[Result "1/2-1/2"]
[ECO "B87"]
[WhiteElo "1568"]
[BlackElo "1618"]
[Annotator "NA RC"]
[PlyCount "155"]
[EventDate "2024.12.23"]
[EventType "team-tourn"]
[EventRounds "7"]
[EventCountry "GER"]
[SourceTitle "playchess.com"]
[Source "ChessBase"]
[SourceQuality "1"]
[TimeControl "40/5400+30:1800+30"]

1. e4 {[%emt 0:00:03]} c5 {[%emt 0:00:06]} 2. Nf3 {[%emt 0:00:03]} d6 {[%emt 0:00:06]} 3. d4 {[%emt 0:00:05]} cxd4 {[%emt 0:00:05]} 4. Nxd4 {[%emt 0:00:06]} Nf6 {[%emt 0:00:04]} 5. Nc3 {[%emt 0:00:07]} a6 {[%emt 0:00:05]} 6. Bg5 {[%emt 0:00:08]} e6 {[%emt 0:00:14]} 7. Bc4 {[%emt 0:00:06]} Be7 {[%emt 0:00:10]} 8. Bb3 {[%emt 0:00:07]} b5 {[%emt 0:00:25]} 9. a3 {[%emt 0:01:26]} Bb7 {[%emt 0:00:12]} 10. Qd3 {[%emt 0:01:20]} Nbd7 {[%emt 0:01:46]} 11. Bxe6 {[%emt 0:06:37]} Nc5 {[%emt 0:02:41]} 12. Bxf7+ {[%emt 0:06:12]} Kxf7 {[%emt 0:00:15]} 13. Qe3 {[%emt 0:05:22]} Rf8 {[%emt 0:11:07]} 14. O-O {[%emt 0:04:09]} Nfxe4 {[%emt 0:10:22]} 15. Nxe4 {[%emt 0:03:40]} Nxe4 {[%emt 0:01:53]} 16. Bxe7 {[%emt 0:09:48]} Qxe7 {[%emt 0:00:16]} 17. Nf5 {[%emt 0:02:05]} Qd7 {[%emt 0:11:14]} 18. f3 {[%emt 0:02:41]} Nc5 {[%emt 0:00:52]} 19. Qg5 {[%emt 0:01:50]} Kg8 {[%emt 0:02:56]} 20. Nh6+ {[%emt 0:09:17]} Kh8 {[%emt 0:00:56]} 21. Ng4 {[%emt 0:02:15]} Rae8 {[%emt 0:04:08]} 22. Rad1 {[%emt 0:01:53]} Qc7 {[%emt 0:08:10]} 23. Rfe1 {[%emt 0:02:52]} Na4 {[%emt 0:11:23]} 24. Rb1 {[%emt 0:09:12]} Rxe1+ {[%emt 0:03:59]} 25. Rxe1 {[%emt 0:00:38]} Nxb2 {[%emt 0:10:33]} 26. Qf4 {[%emt 0:03:25]} Qd8 {[%emt 0:01:19]} 27. Qd4 {[%emt 0:01:22]} Na4 {[%emt 0:00:28]} 28. Re6 {[%emt 0:04:08]} d5 {[%emt 0:02:08]} 29. Qe5 {[%emt 0:03:31]} d4 {[%emt 0:01:21]} 30. Nh6 {[%emt 0:00:38]} Qc8 {[%emt 0:01:32]} 31. Nf7+ {[%emt 0:00:43]} Kg8 {[%emt 0:00:12]} 32. Nd6 {[%emt 0:03:48]} Qc5 {[%emt 0:01:15]} 33. Nxb7 {[%emt 0:00:52]} Qxe5 {[%emt 0:00:08]} 34. Rxe5 {[%emt 0:00:04]} Rc8 {[%emt 0:00:10]} 35. Nd6 {[%emt 0:00:40]} Rd8 {[%emt 0:00:41]} 36. Rd5 {[%emt 0:00:38]} Nb6 {[%emt 0:00:31]} 37. Rxd4 {[%emt 0:00:20]} Nc4 {[%emt 0:00:38]} 38. Nf5 {[%emt 0:00:25]} Rxd4 {[%emt 0:00:10]} 39. Nxd4 {[%emt 0:00:07]} Nxa3 {[%emt 0:00:04]} 40. Kf2 {[%emt 0:00:26]} Kf7 {[%emt 0:00:17]} 41. Ke3 {[%emt 0:30:33]} Ke7 {[%emt 0:30:32]} 42. Kd3 {[%emt 0:00:29]} Kd7 {[%emt 0:01:31]} 43. Kc3 {[%emt 0:02:27]} g6 {[%emt 0:00:52]} 44. Kb4 {[%emt 0:01:05]} Nc4 {[%emt 0:00:20]} 45. Kc5 {[%emt 0:01:28]} h6 {[%emt 0:03:05]} 46. g4 {[%emt 0:02:13]} Kc7 {[%emt 0:02:08]} 47. Ne6+ {[%emt 0:00:52]} Kb7 {[%emt 0:00:07]} 48. Nf4 {[%emt 0:02:55]} g5 {[%emt 0:00:39]} 49. Ng6 {[%emt 0:00:19]} Ne3 {[%emt 0:00:29]} 50. c3 {[%emt 0:00:18]} Kc7 {[%emt 0:00:42]} 51. h4 {[%emt 0:00:45]} Nd1 {[%emt 0:01:06]} 52. hxg5 {[%emt 0:00:36]} hxg5 {[%emt 0:00:07]} 53. c4 {[%emt 0:06:07]} bxc4 {[%emt 0:00:33]} 54. Kxc4 {[%emt 0:01:47]} Kb6 {[%emt 0:00:15]} 55. f4 {[%emt 0:01:46]} gxf4 {[%emt 0:00:15]} 56. Nxf4 {[%emt 0:00:15]} Ne3+ {[%emt 0:00:08]} 57. Kb4 {[%emt 0:00:08]} Nxg4 {[%emt 0:00:41]} 58. Nd5+ {[%emt 0:00:08]} Kb7 {[%emt 0:00:16]} 59. Ka5 {[%emt 0:00:08]} Ne5 {[%emt 0:00:16]} 60. Nb4 {[%emt 0:00:48]} Nc4+ {[%emt 0:00:16]} 61. Ka4 {[%emt 0:00:22]} a5 {[%emt 0:00:20]} 62. Na2 {[%emt 0:00:51]} Kb6 {[%emt 0:00:16]} 63. Nc3 {[%emt 0:00:25]} Kc5 {[%emt 0:00:40]} 64. Kb3 {[%emt 0:00:18]} Kd4 {[%emt 0:01:46]} 65. Kc2 {[%emt 0:00:51]} Ke3 {[%emt 0:01:06]} 66. Na4 {[%emt 0:01:03]} Kd4 {[%emt 0:01:23]} 67. Nc3 {[%emt 0:00:24]} Ne3+ {[%emt 0:00:13]} 68. Kb3 {[%emt 0:00:28]} Nc4 {[%emt 0:03:24]} 69. Kc2 {[%emt 0:01:21]} Kc5 {[%emt 0:00:20]} 70. Na4+ {[%emt 0:00:00]} Kb4 {[%emt 0:00:00]} 71. Nc3 {[%emt 0:00:00]} Ne3+ {[%emt 0:00:00]} 72. Kb2 {[%emt 0:00:00]} Kc4 {[%emt 0:00:00]} 73. Na4 {[%emt 0:00:00]} Nd1+ {[%emt 0:00:00]} 74. Ka3 {[%emt 0:00:00]} Ne3 {[%emt 0:00:00]} 75. Nb2+ {[%emt 0:00:00]} Kb5 {[%emt 0:00:00]} 76. Kb3 {[%emt 0:00:00]} Nd5 {[%emt 0:00:00]} 77. Ka3 {[%emt 0:00:00]} Nc3 {[%emt 0:00:00]} 78. Kb3 {[%emt 0:00:00]} 1/2-1/2

[Event "DVM U12w 2024"]
[Site "Bad Homburg"]
[Date "2024.12.29"]
[Round "5"]
[White "Kuebart, Ela Marie"]
[Black "Mrugalski, Marie"]
[Result "1-0"]
[ECO "D02"]
[WhiteElo "1561"]
[BlackElo "1052"]
[Annotator "NA"]
[PlyCount "111"]
[EventDate "2024.12.23"]
[EventType "team-tourn"]
[EventRounds "7"]
[EventCountry "GER"]
[SourceTitle "playchess.com"]
[Source "ChessBase"]
[SourceQuality "1"]
[TimeControl "40/5400+30:1800+30"]

1. d4 {[%emt 0:00:06]} d5 {[%emt 0:00:05]} 2. Nf3 {[%emt 0:00:05]} Nc6 {[%emt 0:00:24]} 3. e3 {[%emt 0:00:12]} Bf5 {[%emt 0:00:15]} 4. Bd3 {[%emt 0:00:19]} Bxd3 {[%emt 0:00:22]} 5. Qxd3 {[%emt 0:00:18]} Nf6 {[%emt 0:00:13]} 6. c3 {[%emt 0:00:15]} e6 {[%emt 0:00:13]} 7. Nbd2 {[%emt 0:00:22]} Bd6 {[%emt 0:00:39]} 8. O-O {[%emt 0:00:20]} O-O {[%emt 0:00:17]} 9. Re1 {[%emt 0:00:27]} Re8 {[%emt 0:00:52]} 10. e4 {[%emt 0:00:24]} dxe4 {[%emt 0:04:05]} 11. Nxe4 {[%emt 0:00:14]} Nxe4 {[%emt 0:01:43]} 12. Qxe4 {[%emt 0:00:36]} e5 {[%emt 0:01:41]} 13. dxe5 {[%emt 0:02:34]} Nxe5 {[%emt 0:00:28]} 14. Bf4 {[%emt 0:02:47]} Nxf3+ {[%emt 0:01:18]} 15. Qxf3 {[%emt 0:00:22]} Rxe1+ {[%emt 0:02:06]} 16. Rxe1 {[%emt 0:00:12]} h6 {[%emt 0:03:10]} 17. Rd1 {[%emt 0:02:48]} Qe8 {[%emt 0:01:28]} 18. Kf1 {[%emt 0:04:27]} Bxf4 {[%emt 0:00:42]} 19. Qxf4 {[%emt 0:00:49]} Rd8 {[%emt 0:03:18]} 20. Rxd8 {[%emt 0:14:08]} Qxd8 {[%emt 0:00:12]} 21. Qf3 {[%emt 0:02:45]} c6 {[%emt 0:02:22]} 22. Qe2 {[%emt 0:02:52]} Qd6 {[%emt 0:03:11]} 23. Qe8+ {[%emt 0:01:07]} Kh7 {[%emt 0:00:10]} 24. Qe4+ {[%emt 0:01:06]} Kg8 {[%emt 0:00:59]} 25. g3 {[%emt 0:06:51]} Qd1+ {[%emt 0:01:00]} 26. Kg2 {[%emt 0:00:37]} Qd2 {[%emt 0:00:46]} 27. Qe8+ {[%emt 0:00:49]} Kh7 {[%emt 0:00:43]} 28. Qxf7 {[%emt 0:02:38]} Qxb2 {[%emt 0:02:00]} 29. Qb3 {[%emt 0:01:09]} Qxb3 {[%emt 0:00:57]} 30. axb3 {[%emt 0:00:09]} Kg6 {[%emt 0:01:09]} 31. g4 {[%emt 0:03:52]} b5 {[%emt 0:00:48]} 32. f4 {[%emt 0:03:22]} Kf6 {[%emt 0:00:23]} 33. Kf3 {[%emt 0:00:17]} Ke6 {[%emt 0:00:32]} 34. Ke4 {[%emt 0:00:09]} c5 {[%emt 0:01:07]} 35. b4 {[%emt 0:01:41]} Kd6 {[%emt 0:02:08]} 36. h4 {[%emt 0:00:37]} cxb4 {[%emt 0:01:06]} 37. cxb4 {[%emt 0:01:14]} Ke6 {[%emt 0:00:24]} 38. f5+ {[%emt 0:02:10]} Kf6 {[%emt 0:00:24]} 39. Kd4 {[%emt 0:02:17]} g5 {[%emt 0:02:11]} 40. h5 {[%emt 0:01:16]} Ke7 {[%emt 0:00:24]} 41. Kc5 {[%emt 0:30:08]} Kd7 {[%emt 0:31:38]} 42. Kxb5 {[%emt 0:00:12]} Kc7 {[%emt 0:00:14]} 43. f6 {[%emt 0:00:12]} Kd7 {[%emt 0:00:23]} 44. Ka6 {[%emt 0:00:07]} Ke6 {[%emt 0:00:52]} 45. f7 {[%emt 0:00:25]} Kxf7 {[%emt 0:00:07]} 46. Kxa7 {[%emt 0:00:04]} Ke6 {[%emt 0:00:10]} 47. b5 {[%emt 0:00:06]} Ke5 {[%emt 0:00:25]} 48. b6 {[%emt 0:00:06]} Kf4 {[%emt 0:00:14]} 49. b7 {[%emt 0:00:05]} Kxg4 {[%emt 0:00:08]} 50. b8=Q {[%emt 0:00:09]} Kxh5 {[%emt 0:00:12]} 51. Qh2+ {[%emt 0:00:07]} Kg6 {[%emt 0:00:09]} 52. Qh3 {[%emt 0:00:48]} h5 {[%emt 0:00:11]} 53. Qe6+ {[%emt 0:00:05]} Kg7 {[%emt 0:00:19]} 54. Qf5 {[%emt 0:00:43]} Kh6 {[%emt 0:00:21]} 55. Qf6+ {[%emt 0:00:06]} Kh7 {[%emt 0:00:23]} 56. Qxg5 {[%emt 0:00:07]} 1-0